fUSD/lending_fUSD_20250215
["ID","MTS","AMOUNT","RATE_DAILY","PERIOD"]
[353134352,1739592646755,-500.0,0.0001108,2]
[353134353,1739592646765,-500.0,0.0001108,2]
[353134354,1739592646777,-501.66961545,0.0001108,2]
[353134355,1739592646788,-511.76850396,0.0001108,2]
[353134356,1739592646799,-500.0,0.0001108,2]
[353134357,1739592646811,-500.0,0.0001108,2]
[353134358,1739592646821,-512.97856671,0.0001108,2]
[353134359,1739592646831,-504.95704444,0.0001108,2]
[353134360,1739592646841,-511.88828636,0.0001108,2]
[353134361,1739592646851,-500.0,0.0001108,2]
[353134362,1739592646861,-500.0,0.0001108,2]
[353134363,1739592646871,-424.08720293,0.0001108,2]
[353134364,1739592646884,-80.65527861,0.0001108,2]
[353134365,1739592646894,-508.35,0.0001108,2]
[353134366,1739592646904,-194.34084014,0.0001108,2]
[353134367,1739592646916,-308.70020176,0.0001108,2]
[353134368,1739592646926,-500.0,0.0001108,2]
[353134369,1739592646936,-130.29979819,0.0001108,2]
[353134370,1739592646948,-369.70020181,0.0001108,2]
[353134371,1739592646957,-55.77178777,0.0001108,2]
[353134372,1739592646970,-500.0,0.0001108,2]
[353134373,1739592646982,-86.70212825,0.0001108,2]
[353134374,1739592646992,-490.75993113,0.0001108,2]
[353134375,1739592647004,-9.24006887,0.0001108,2]
[353134376,1739592647014,-500.0,0.0001108,2]
[353134377,1739592647024,-534.47,0.0001108,2]
[353134378,1739592647034,-500.0,0.0001108,2]
[353134379,1739592647044,-500.0,0.0001108,2]
[353134380,1739592647054,-500.0,0.0001108,2]
[353134381,1739592647065,-502.3351736,0.0001108,2]
[353134382,1739592647075,-500.0,0.0001108,2]
[353134383,1739592647087,-500.0,0.0001108,2]
[353134384,1739592647099,-500.0,0.0001108,2]
[353134385,1739592647110,-201.00985983,0.0001108,2]
[353134386,1739592647120,-500.0,0.0001108,2]
[353134387,1739592647131,-500.0,0.0001108,2]
[353134388,1739592647141,-500.0,0.0001108,2]
[353134389,1739592647152,-500.0,0.0001108,2]
[353134390,1739592647162,-500.0,0.0001108,2]
[353134391,1739592647173,-500.0,0.0001108,2]
[353134392,1739592647184,-217.06,0.0001108,2]
[353134393,1739592647195,-790.8,0.0001108,2]
[353134394,1739592647209,-500.0,0.0001108,2]
[353134395,1739592647611,-500.0,0.0001108,2]
[353134396,1739592647622,-555.36692414,0.0001108,2]
[353134397,1739592647636,-173.63307586,0.0001108,2]
[353134398,1739592647646,-500.0,0.0001108,2]
[353134399,1739592647655,-448.10782099,0.0001108,2]
[353134400,1739592647668,-51.89217901,0.0001108,2]
[353134401,1739592647678,-512.31,0.0001108,2]
[353134402,1739592647688,-55.82073673,0.0001108,2]
[353134403,1739592647700,-444.17926327,0.0001108,2]
[353134404,1739592647711,-210.66073273,0.0001108,2]
[353134405,1739592647723,-501.03926727,0.0001108,2]
[353134406,1739592647734,-500.0,0.0001108,2]
[353134407,1739592647744,-500.0,0.0001108,2]
[353134408,1739592647755,-500.0,0.0001108,2]
[353134409,1739592647765,-568.95,0.0001108,2]
[353134410,1739592647776,-500.0,0.0001108,2]
[353134411,1739592647786,-512.97,0.0001108,2]
[353134412,1739592647796,-500.0,0.0001108,2]
[353134413,1739592647806,-500.0,0.0001108,2]
[353134414,1739592647816,-500.0,0.0001108,2]
[353134415,1739592647826,-500.0,0.0001108,2]
[353134416,1739592647835,-539.98,0.0001108,2]
[353134417,1739592647845,-500.0,0.0001108,2]
[353134418,1739592647854,-579.68,0.0001108,2]
[353134419,1739592647864,-547.7082715,0.0001108,2]
[353134420,1739592647875,-582.32,0.0001108,2]
[353134421,1739592647885,-500.0,0.0001108,2]
[353134422,1739592647895,-500.0,0.0001108,2]
[353134423,1739592647905,-500.0,0.0001108,2]
[353134424,1739592647914,-500.0,0.0001108,2]
[353134425,1739592647925,-500.0,0.0001108,2]
[353134426,1739592647935,-774.39,0.0001108,2]
[353134427,1739592647944,-571.43,0.0001108,2]
[353134428,1739592647954,-500.0,0.0001108,2]
[353134429,1739592647964,-500.0,0.0001108,2]
[353134430,1739592647974,-500.0,0.0001108,2]
[353134431,1739592647984,-500.0,0.0001108,2]
[353134432,1739592647995,-597.04448311,0.0001108,2]
[353134433,1739592648005,-729.23,0.0001108,2]
[353134434,1739592648015,-500.0,0.0001108,2]
[353134435,1739592648026,-500.0,0.0001108,2]
[353134436,1739592648038,-500.0,0.0001108,2]
[353134437,1739592648049,-500.0,0.0001108,2]
[353134438,1739592648061,-500.0,0.0001108,2]
[353134439,1739592648072,-228.15602212,0.0001108,2]
[353134440,1739592648091,-179.27916379,0.0001108,2]
[353134441,1739592648103,-171.04456494,0.0001108,2]
[353134442,1739592648118,-245.13223936,0.0001108,2]
[353134443,1739592648131,-500.0,0.0001108,2]
[353134444,1739592648142,-500.0,0.0001108,2]
[353134445,1739592648153,-707.91,0.0001108,2]
[353134446,1739592648167,-411.03591054,0.0001108,2]
[353134447,1739592648179,-500.0,0.0001108,2]
[353134448,1739592648190,-500.0,0.0001108,2]
[353134449,1739592648202,-500.0,0.0001108,2]
[353134450,1739592648215,-500.0,0.0001108,2]
[353134451,1739592648227,-500.0,0.0001108,2]
[353134452,1739592648239,-500.0,0.0001108,2]
[353134453,1739592648251,-699.54,0.0001108,2]
[353134454,1739592648263,-500.0,0.0001108,2]
[353134455,1739592648275,-500.0,0.0001108,2]
[353134456,1739592648287,-519.34,0.0001108,2]
[353134457,1739592648299,-500.0,0.0001108,2]
[353134458,1739592648310,-500.0,0.0001108,2]
[353134459,1739592648320,-500.0,0.0001108,2]
[353134460,1739592648331,-639.82079685,0.0001108,2]
[353134461,1739592648342,-500.0,0.0001108,2]
[353134462,1739592648353,-500.0,0.0001108,2]
[353134463,1739592648364,-419.41677549,0.0001108,2]
[353134464,1739592648375,-500.0,0.0001108,2]
[353134465,1739592648386,-500.0,0.0001108,2]
[353134466,1739592648397,-500.0,0.0001108,2]
[353134467,1739592648408,-500.0,0.0001108,2]
[353134468,1739592648419,-500.0,0.0001108,2]
[353134469,1739592648430,-500.0,0.0001108,2]
[353134470,1739592648442,-500.0,0.0001108,2]
[353134471,1739592648454,-500.0,0.0001108,2]
[353134472,1739592648465,-500.0,0.0001108,2]
[353134473,1739592648477,-500.0,0.0001108,2]
[353134474,1739592648488,-500.0,0.0001108,2]
[353134475,1739592648500,-500.0,0.0001108,2]
[353134476,1739592648511,-500.0,0.0001108,2]
[353134477,1739592648522,-662.41,0.0001108,2]
[353134478,1739592648533,-500.0,0.0001108,2]
[353134479,1739592648543,-500.0,0.0001108,2]
[353134480,1739592648553,-500.0,0.0001108,2]
[353134481,1739592648563,-500.0,0.0001108,2]
[353134482,1739592648572,-504.54783658,0.0001108,2]
[353134483,1739592648583,-500.0,0.0001108,2]
[353134484,1739592648595,-500.0,0.0001108,2]
[353134485,1739592648605,-500.0,0.0001108,2]
[353134486,1739592648617,-669.98,0.0001108,2]
[353134487,1739592648629,-500.0,0.0001108,2]
[353134488,1739592648640,-500.0,0.0001108,2]
[353134489,1739592648651,-678.11,0.0001108,2]
[353134490,1739592648661,-199.9500624,0.0001108,2]
[353134491,1739592648672,-718.14,0.0001108,2]
[353134492,1739592648682,-500.0,0.0001108,2]
[353134493,1739592648693,-500.0,0.0001108,2]
[353134494,1739592648704,-585.58,0.0001108,2]
[353134495,1739592648716,-500.0,0.0001108,2]
[353134496,1739592648726,-1226.48,0.0001108,2]
[353134497,1739592648737,-500.0,0.0001108,2]
[353134498,1739592648749,-500.0,0.0001108,2]
[353134499,1739592648759,-965.85,0.0001108,2]
[353134500,1739592648769,-970.07,0.0001108,2]
[353134501,1739592648779,-500.0,0.0001108,2]
[353134502,1739592648790,-605.66,0.0001108,2]
[353134503,1739592648800,-1448.52,0.0001108,2]
[353134504,1739592648811,-505.06,0.0001108,2]
[353134505,1739592648821,-500.0,0.0001108,2]
[353134506,1739592648832,-1309.55,0.0001108,2]
[353134507,1739592648843,-500.0,0.0001108,2]
[353134508,1739592648853,-820.69,0.0001108,2]
[353134509,1739592648864,-500.0,0.0001108,2]
[353134510,1739592648875,-500.0,0.0001108,2]
[353134511,1739592648885,-500.0,0.0001108,2]
[353134512,1739592648895,-1015.49,0.0001108,2]
[353134513,1739592648905,-638.4,0.0001108,2]
[353134514,1739592648916,-510.86065977,0.0001108,2]
[353134515,1739592648927,-1073.79,0.0001108,2]
[353134516,1739592648938,-500.0,0.0001108,2]
[353134517,1739592648949,-1353.2,0.0001108,2]
[353134518,1739592648960,-500.0,0.0001108,2]
[353134519,1739592648973,-1542.3,0.0001108,2]
[353134520,1739592648983,-718.95,0.0001108,2]
[353134521,1739592648994,-1051.63,0.0001108,2]
[353134522,1739592649005,-500.0,0.0001108,2]
[353134523,1739592649015,-500.0,0.0001108,2]
[353134524,1739592649027,-272.82138917,0.0001108,2]
[353134525,1739592649038,-1059.44,0.0001108,2]
[353134526,1739592649049,-500.0,0.0001108,2]
[353134527,1739592649060,-961.85,0.0001108,2]
[353134528,1739592649070,-500.0,0.0001108,2]
[353134529,1739592649082,-1361.54,0.0001108,2]
[353134530,1739592649097,-762.61,0.0001108,2]
[353134531,1739592649109,-962.49,0.0001108,2]
[353134532,1739592649121,-500.0,0.0001108,2]
[353134533,1739592649131,-500.0,0.0001108,2]
[353134534,1739592649142,-1478.58,0.0001108,2]
[353134535,1739592649152,-362.21,0.0001108,2]
[353134536,1739592649162,-2322.72,0.0001108,2]
[353134537,1739592649174,-598.15669842,0.0001108,2]
[353134538,1739592649184,-3790.98,0.0001108,2]
[353134539,1739592649194,-500.0,0.0001108,2]
[353134540,1739592649203,-333.37859715,0.0001108,2]
[353134541,1739592649217,-955.0,0.0001108,2]
[353134542,1739592649238,-462.00995226,0.00010958,2]
[353134543,1739592649252,-169.93004774,0.00010958,2]
[353134544,1739592649263,-16.94140285,0.0001108,2]
[353134545,1739592649272,-500.0,0.0001108,2]
[353134546,1739592649283,-503.8410693,0.0001108,2]
[353134547,1739592649295,-510.24391603,0.0001108,2]
[353134548,1739592649305,-728.45767468,0.0001108,2]
[353134549,1739592649318,-195.08232532,0.0001108,2]
[353134550,1739592649329,-500.0,0.0001108,2]
[353134551,1739592649340,-1392.25,0.0001108,2]
[353134552,1739592649351,-500.0,0.0001108,2]
[353134553,1739592649361,-500.0,0.0001108,2]
[353134554,1739592649372,-1161.05,0.0001108,2]
[353134555,1739592649382,-921.66,0.0001108,2]
[353134556,1739592649392,-500.0,0.0001108,2]
[353134557,1739592649402,-822.94032227,0.0001108,2]
[353134558,1739592649424,-1032.91165572,0.0001108,2]
[353134559,1739592649436,-832.90802201,0.0001108,2]
[353134560,1739592649447,-1266.18,0.0001108,2]
[353134561,1739592649457,-149.3102062,0.0001108,2]
[353134562,1739592649471,-350.6897938,0.0001108,2]
[353134563,1739592649484,-503.99950444,0.0001108,2]
[353134564,1739592649495,-500.0,0.0001108,2]
[353134565,1739592649506,-839.14,0.0001108,2]
[353134566,1739592649517,-413.89,0.0001108,2]
[353134567,1739592649529,-500.0,0.0001108,2]
[353134568,1739592649541,-500.0,0.0001108,2]
[353134569,1739592649552,-547.76,0.0001108,2]
[353134570,1739592649563,-500.0,0.0001108,2]
[353134571,1739592649574,-500.0,0.0001108,2]
[353134572,1739592649584,-940.41,0.0001108,2]
[353134573,1739592649595,-643.01,0.0001108,2]
[353134574,1739592649605,-165.01360548,0.0001108,2]
[353134575,1739592649614,-1185.33,0.0001108,2]
[353134576,1739592649624,-2023.02,0.0001108,2]
[353134577,1739592649634,-500.0,0.0001108,2]
[353134578,1739592649644,-502.68782345,0.0001108,2]
[353134579,1739592649654,-500.0,0.0001108,2]
[353134580,1739592649664,-500.0,0.0001108,2]
[353134581,1739592649673,-500.0,0.0001108,2]
[353134582,1739592649683,-500.0,0.0001108,2]
[353134583,1739592649693,-886.64,0.0001108,2]
[353134584,1739592649703,-995.91,0.0001108,2]
[353134585,1739592649713,-1834.55,0.0001108,2]
[353134586,1739592649723,-500.0,0.0001108,2]
[353134587,1739592649732,-500.0,0.0001108,2]
[353134588,1739592649742,-500.0,0.0001108,2]
[353134589,1739592649752,-1107.0,0.0001108,2]
[353134590,1739592649762,-920.6,0.0001108,2]
[353134591,1739592649772,-500.0,0.0001108,2]
[353134592,1739592649782,-589.34,0.0001108,2]
[353134593,1739592649791,-610.71,0.0001108,2]
[353134594,1739592649801,-500.0,0.0001108,2]
[353134595,1739592649810,-25991.42110662,0.00011099,2]
[353134596,1739592649820,-25991.42110656,0.00011099,2]
[353134597,1739592649830,-29853.57583142,0.00011099,2]
[353134598,1739592649840,-29853.57583134,0.00011099,2]
[353134599,1739592649850,-500.0,0.00011115,2]
[353134600,1739592649859,-2000.0,0.00011115,2]
[353134601,1739592649868,-500.0,0.00011115,2]
[353134602,1739592649878,-200.0,0.00011115,2]
[353134603,1739592649887,-500.0,0.00011122,2]
[353134604,1739592649897,-500.0,0.00011122,2]
[353134605,1739592649907,-1399.0,0.00011123,2]
[353134606,1739592649917,-500.0,0.00011123,2]
[353134607,1739592649927,-500.0,0.00011123,2]
[353134608,1739592649936,-779.18,0.00011123,2]
[353134609,1739592649946,-500.0,0.00011123,2]
[353134610,1739592649955,-500.0,0.00011123,2]
[353134611,1739592649965,-500.0,0.00011123,2]
[353134612,1739592649975,-500.0,0.00011123,2]
[353134613,1739592649984,-969.28,0.00011123,2]
[353134614,1739592649993,-624.13,0.00011123,2]
[353134615,1739592650002,-500.0,0.00011123,2]
[353134616,1739592650011,-500.0,0.00011123,2]
[353134617,1739592650020,-500.0,0.00011123,2]
[353134618,1739592650029,-500.0,0.00011123,2]
[353134619,1739592650039,-500.0,0.00011123,2]
[353134620,1739592650048,-500.0,0.00011123,2]
[353134621,1739592650057,-500.0,0.00011123,2]
[353134622,1739592650067,-500.0,0.00011123,2]
[353134623,1739592650076,-500.0,0.00011123,2]
[353134624,1739592650088,-500.0,0.00011123,2]
[353134625,1739592650098,-500.0,0.00011123,2]
[353134626,1739592650108,-500.0,0.00011123,2]
[353134627,1739592650120,-612.8,0.00011123,2]
[353134628,1739592650131,-500.0,0.00011123,2]
[353134629,1739592650139,-747.95,0.00011123,2]
[353134630,1739592650148,-563.11,0.00011123,2]
[353134631,1739592650157,-500.0,0.00011123,2]
[353134632,1739592650168,-500.0,0.00011123,2]
[353134633,1739592650177,-500.0,0.00011123,2]
[353134634,1739592650186,-500.0,0.00011123,2]
[353134635,1739592650195,-500.0,0.00011123,2]
[353134636,1739592650205,-500.0,0.00011123,2]
[353134637,1739592650214,-500.0,0.00011123,2]
[353134638,1739592650223,-500.0,0.00011123,2]
[353134639,1739592650233,-500.0,0.00011123,2]
[353134640,1739592650242,-500.0,0.00011123,2]
[353134641,1739592650251,-500.0,0.00011123,2]
[353134642,1739592650260,-500.0,0.00011123,2]
[353134643,1739592650270,-500.0,0.00011123,2]
[353134644,1739592650279,-500.0,0.00011123,2]
[353134645,1739592650288,-564.01,0.00011123,2]
[353134646,1739592650298,-500.0,0.00011123,2]
[353134647,1739592650307,-500.0,0.00011123,2]
[353134648,1739592650316,-500.0,0.00011123,2]
[353134649,1739592650326,-566.36,0.00011123,2]
[353134650,1739592650335,-926.11,0.00011123,2]
[353134651,1739592650345,-1000.0,0.00011123,2]
[353134652,1739592650354,-1317.22,0.00011123,2]
[353134653,1739592650363,-500.0,0.00011123,2]
[353134654,1739592650372,-500.0,0.00011123,2]
[353134655,1739592650383,-500.0,0.00011123,2]
[353134656,1739592650392,-500.0,0.00011123,2]
[353134657,1739592650402,-726.39,0.00011123,2]
[353134658,1739592650412,-500.0,0.00011123,2]
[353134659,1739592650421,-500.0,0.00011123,2]
[353134660,1739592650431,-500.0,0.00011123,2]
[353134661,1739592650442,-1448.43,0.00011123,2]
[353134662,1739592650454,-643.54,0.00011123,2]
[353134663,1739592650464,-533.19,0.00011123,2]
[353134664,1739592650473,-651.94,0.00011123,2]
[353134665,1739592650482,-601.41,0.00011123,2]
[353134666,1739592650491,-500.0,0.00011123,2]
[353134667,1739592650501,-500.0,0.00011123,2]
[353134668,1739592650510,-500.0,0.00011123,2]
[353134669,1739592650520,-500.0,0.00011123,2]
[353134670,1739592650530,-639.89,0.00011123,2]
[353134671,1739592650540,-500.0,0.00011123,2]
[353134672,1739592650549,-500.0,0.00011123,2]
[353134673,1739592650558,-500.0,0.00011123,2]
[353134674,1739592650567,-586.88,0.00011123,2]
[353134675,1739592650576,-500.0,0.00011123,2]
[353134676,1739592650586,-158.47287147,0.0001115,2]
[353134677,1739592650595,-500.0,0.00011159,2]
[353134678,1739592650604,-931.77,0.00011159,2]
[353134679,1739592650614,-993.24,0.00011159,2]
[353134680,1739592650623,-743.76,0.00011159,2]
[353134681,1739592650633,-508.22,0.00011159,2]
[353134682,1739592650643,-802.69,0.00011159,2]
[353134683,1739592650653,-500.0,0.00011159,2]
[353134684,1739592650662,-500.0,0.00011159,2]
[353134685,1739592650672,-500.0,0.00011159,2]
[353134686,1739592650681,-500.0,0.00011159,2]
[353134687,1739592650690,-500.0,0.00011159,2]
[353134688,1739592650699,-896.78,0.00011159,2]
[353134689,1739592650710,-500.0,0.00011159,2]
[353134690,1739592650720,-500.0,0.00011159,2]
[353134691,1739592650731,-351.33,0.00011159,2]
[353134692,1739592650740,-500.0,0.0001116,2]
[353134693,1739592650750,-601.14,0.0001116,2]
[353134694,1739592650759,-500.0,0.0001116,2]
[353134695,1739592650769,-566.47,0.0001116,2]
[353134696,1739592650778,-500.0,0.0001116,2]
[353134697,1739592650787,-500.0,0.0001116,2]
[353134698,1739592650797,-500.0,0.0001116,2]
[353134699,1739592650806,-500.0,0.0001116,2]
[353134700,1739592650816,-500.0,0.0001116,2]
[353134701,1739592650825,-500.0,0.0001116,2]
[353134702,1739592650840,-500.0,0.0001116,2]
[353134703,1739592650851,-522.75,0.0001116,2]
[353134704,1739592650864,-500.0,0.0001116,2]
[353134705,1739592650879,-555.81648667,0.0001116,2]
[353134706,1739592650893,-500.0,0.0001116,2]
[353134707,1739592650907,-735.72,0.0001116,2]
[353134708,1739592650918,-500.0,0.0001116,2]
[353134709,1739592650929,-500.0,0.0001116,2]
[353134710,1739592650941,-631.69,0.0001116,2]
[353134711,1739592650953,-500.0,0.0001116,2]
[353134712,1739592650966,-593.81,0.0001116,2]
[353134713,1739592650980,-500.0,0.0001116,2]
[353134714,1739592650992,-585.51,0.0001116,2]
[353134715,1739592651004,-500.0,0.0001116,2]
[353134716,1739592651016,-546.39,0.0001116,2]
[353134717,1739592651028,-500.0,0.0001116,2]
[353134718,1739592651040,-896.48,0.0001116,2]
[353134719,1739592651053,-500.0,0.0001116,2]
[353134720,1739592651066,-500.0,0.0001116,2]
[353134721,1739592651078,-934.18,0.0001116,2]
[353134722,1739592651091,-500.0,0.0001116,2]
[353134723,1739592651104,-500.0,0.0001116,2]
[353134724,1739592651115,-717.86,0.0001116,2]
[353134725,1739592651126,-469.687994,0.0001116,2]
[353134726,1739592651139,-1029.62,0.0001116,2]
[353134727,1739592651149,-712.58,0.0001116,2]
[353134728,1739592651162,-519.6,0.0001116,2]
[353134729,1739592651174,-500.0,0.0001116,2]
[353134730,1739592651187,-693.06,0.0001116,2]
[353134731,1739592651199,-539.75245,0.0001116,2]
[353134732,1739592651212,-1192.79,0.0001116,2]
[353134733,1739592651224,-516.28,0.0001116,2]
[353134734,1739592651237,-737.45,0.0001116,2]
[353134735,1739592651248,-500.0,0.0001116,2]
[353134736,1739592651263,-850.72,0.0001116,2]
[353134737,1739592651275,-713.07,0.0001116,2]
[353134738,1739592651289,-500.0,0.0001116,2]
[353134739,1739592651302,-1653.38,0.0001116,2]
[353134740,1739592651313,-774.63,0.0001116,2]
[353134741,1739592651326,-899.35,0.0001116,2]
[353134742,1739592651340,-587.14,0.0001116,2]
[353134743,1739592651352,-524.77,0.0001116,2]
[353134744,1739592651364,-649.6,0.0001116,2]
[353134745,1739592651377,-500.0,0.0001116,2]
[353134746,1739592651388,-574.8,0.0001116,2]
[353134747,1739592651399,-1017.28,0.0001116,2]
[353134748,1739592651411,-1225.39,0.0001116,2]
[353134749,1739592651422,-668.83,0.0001116,2]
[353134750,1739592651433,-585.33,0.0001116,2]
[353134751,1739592651444,-759.44,0.0001116,2]
[353134752,1739592651457,-900.52,0.0001116,2]
[353134753,1739592651469,-5669.06,0.0001116,2]
[353134754,1739592651483,-904.21,0.0001116,2]
[353134755,1739592651495,-1561.41,0.0001116,2]
[353134756,1739592651507,-1149.86,0.0001116,2]
[353134757,1739592651519,-500.0,0.0001116,2]
[353134758,1739592651531,-1420.44,0.0001116,2]
[353134759,1739592651545,-1241.8,0.0001116,2]
[353134760,1739592651555,-808.21,0.0001116,2]
[353134761,1739592651565,-1265.46,0.0001116,2]
[353134762,1739592651576,-1099.16,0.0001116,2]
[353134763,1739592651588,-3601.73,0.0001116,2]
[353134764,1739592651599,-1182.94,0.0001116,2]
[353134765,1739592651611,-696.23,0.0001116,2]
[353134766,1739592651624,-500.0,0.0001116,2]
[353134767,1739592651637,-592.01,0.0001116,2]
[353134768,1739592651648,-670.6,0.0001116,2]
[353134769,1739592651660,-1835.11,0.0001116,2]
[353134770,1739592651672,-1249.2,0.0001116,2]
[353134771,1739592651683,-1794.54,0.0001116,2]
[353134772,1739592651694,-500.0,0.0001116,2]
[353134773,1739592651706,-1458.78,0.0001116,2]
[353134774,1739592651718,-627.57,0.0001116,2]
[353134775,1739592651730,-500.0,0.0001116,2]
[353134776,1739592651742,-500.0,0.0001116,2]
[353134777,1739592651754,-1168.39,0.0001116,2]
[353134778,1739592651767,-500.0,0.0001116,2]
[353134779,1739592651778,-890.83,0.0001116,2]
[353134780,1739592651788,-300.0,0.00011161,2]
[353134781,1739592651798,-395.57,0.00011162,2]
[353134782,1739592651808,-173.56,0.00011162,2]
[353134783,1739592651818,-500.0,0.00011162,2]
[353134784,1739592651828,-208.7570809,0.00011162,2]
[353134785,1739592651839,-500.0,0.00011162,2]
[353134786,1739592651850,-500.0,0.00011162,2]
[353134787,1739592651861,-435.68840255,0.00011162,2]
[353134788,1739592651871,-500.0,0.00011162,2]
[353134789,1739592651881,-500.0,0.00011162,2]
[353134790,1739592651891,-500.0,0.00011162,2]
[353134791,1739592651902,-500.0,0.00011162,2]
[353134792,1739592651912,-539.98,0.00011162,2]
[353134793,1739592651922,-503.52755555,0.00011162,2]
[353134794,1739592651933,-500.0,0.00011162,2]
[353134795,1739592651943,-500.0,0.00011162,2]
[353134796,1739592651954,-500.0,0.00011162,2]
[353134797,1739592651967,-500.0,0.00011162,2]
[353134798,1739592651978,-500.0,0.00011162,2]
[353134799,1739592651994,-500.0,0.00011162,2]
[353134800,1739592652005,-500.0,0.00011162,2]
[353134801,1739592652016,-500.0,0.00011162,2]
[353134802,1739592652027,-500.0,0.00011162,2]
[353134803,1739592652037,-500.0,0.00011162,2]
[353134804,1739592652049,-500.0,0.00011162,2]
[353134805,1739592652060,-500.0,0.00011162,2]
[353134806,1739592652072,-500.0,0.00011162,2]
[353134807,1739592652085,-699.54,0.00011162,2]
[353134808,1739592652102,-500.0,0.00011162,2]
[353134809,1739592652113,-519.34,0.00011162,2]
[353134810,1739592652125,-500.0,0.00011162,2]
[353134811,1739592652138,-500.0,0.00011162,2]
[353134812,1739592652150,-500.0,0.00011162,2]
[353134813,1739592652161,-500.0,0.00011162,2]
[353134814,1739592652173,-500.0,0.00011162,2]
[353134815,1739592652185,-500.0,0.00011162,2]
[353134816,1739592652196,-500.0,0.00011162,2]
[353134817,1739592652208,-500.0,0.00011162,2]
[353134818,1739592652219,-662.41,0.00011162,2]
[353134819,1739592652231,-289.42138149,0.00011162,2]
[353134820,1739592652242,-500.0,0.00011162,2]
[353134821,1739592652253,-500.0,0.00011162,2]
[353134822,1739592652264,-415.00515304,0.00011162,2]
[353134823,1739592652275,-500.0,0.00011162,2]
[353134824,1739592652287,-669.98,0.00011162,2]
[353134825,1739592652298,-204.27638403,0.00011162,2]
[353134826,1739592652309,-500.0,0.00011162,2]
[353134827,1739592652321,-678.11,0.00011162,2]
[353134828,1739592652332,-718.14,0.00011162,2]
[353134829,1739592652344,-500.0,0.00011162,2]
[353134830,1739592652355,-500.0,0.00011162,2]
[353134831,1739592652366,-585.58,0.00011162,2]
[353134832,1739592652377,-500.0,0.00011162,2]
[353134833,1739592652389,-506.58290364,0.00011162,2]
[353134834,1739592652400,-500.0,0.00011162,2]
[353134835,1739592652410,-965.85,0.00011162,2]
[353134836,1739592652421,-970.07,0.00011162,2]
[353134837,1739592652433,-500.0,0.00011162,2]
[353134838,1739592652444,-605.66,0.00011162,2]
[353134839,1739592652456,-505.06,0.00011162,2]
[353134840,1739592652467,-458.81,0.00011162,2]
[353134841,1739592652478,-1309.55,0.00011162,2]
[353134842,1739592652489,-500.0,0.00011162,2]
[353134843,1739592652500,-820.69,0.00011162,2]
[353134844,1739592652513,-500.0,0.00011162,2]
[353134845,1739592652524,-500.0,0.00011162,2]
[353134846,1739592652536,-572.59739939,0.00011162,2]
[353134847,1739592652547,-1015.49,0.00011162,2]
[353134848,1739592652558,-1073.79,0.00011162,2]
[353134849,1739592652569,-500.0,0.00011162,2]
[353134850,1739592652581,-1353.2,0.00011162,2]
[353134851,1739592652592,-500.0,0.00011162,2]